Cogmind - Beta 15 @@@ ROGUE MODE // 2025.05.06 @ 19:12:38 Player: opdo Result: Destroyed by T9-EZW(j) with Overtuned Pulse Rifle Performance ------------- Evolutions (0) 0 Regions Visited (3) 600 Robots Destroyed (16) 80 Value Destroyed (582) 582 Prototype IDs (8) 160 Alien Tech Used (0) 0 Bonus (1220) 1220 TOTAL SCORE: 2642 Bonus ------- Follower Combat Kills 432 Registered with UFD 300 Met Optimus in HQ 500 Friendly Fire -12 Cogmind --------- Core Integrity 0/250 Matter 300/300 Energy 98/100 System Corruption 2% Temperature Warm (165) Movement Walking (145) Location -7/Scraptown Parts ------- > --- POWER (1) -------- (None) > --- PROPULSION (2) --- Makeshift Leg Assembled Alloy Leg > --- UTILITY (2) ------ Medium Storage Unit Improved Core Shielding > --- WEAPON (2) ------- Thermal Lance > --- INVENTORY (10) --- Overtuned Titanium Leg Overtuned Titanium Leg Scrapoid Pod Autogun Minigun Barrage Gun Improved Light Cannon DRS Beacon (Ready) Peak State ------------ > --- POWER ------------ Ion Engine > --- PROPULSION ------- Makeshift Leg Assembled Alloy Leg > --- UTILITY ---------- Medium Storage Unit Improved Core Shielding > --- WEAPON ----------- Heavy Missile Launcher Thermal Lance > --- INVENTORY -------- Scrapoid Pod Autogun Minigun Barrage Gun Gauss Rifle Improved Light Cannon Vortex Trap Vortex Trap DRS Beacon [Rating: 37] Favorites ----------- Power Ion Engine Engine Ion Engine Power Core Fusion Compressor Propulsion Aluminum Leg Treads Light Treads Leg Aluminum Leg Utility Medium Storage Unit Device Matter Filter Storage Medium Storage Unit Protection Improved Core Shielding Weapon Barrage Gun Energy Gun Small Laser Energy Cannon Subdweller Beam Cannon Ballistic Gun Barrage Gun Ballistic Cannon Light Cannon Launcher Grenade Launcher Impact Weapon Makeshift Hammer Piercing Weapon Thermal Lance Build | -11 -10 -10 -7 ------- Run | Yrd Mat Sub Scr Slots Evolved . | . . . . Power . | . . . . Propulsion . | . . . . Utility . | . . . . Weapon . | . . . . Parts Attached 26 | 6 2 6 12 Power 4 | 1 . 2 1 Engine 3 | 1 . 2 . Core 1 | . . . 1 Reactor . | . . . . Propulsion 6 | 2 1 1 2 Treads 1 | . . 1 . Leg 5 | 2 1 . 2 Wheel . | . . . . Hover . | . . . . Flight . | . . . . Utility 4 | 1 1 . 2 Device 1 | . . . 1 Storage 2 | 1 1 . . Processor . | . . . . Hackware . | . . . . Protection 1 | . . . 1 Artifact . | . . . . Weapon 12 | 2 . 3 7 Energy Gun 3 | 2 . 1 . Energy Cannon 1 | . . 1 . Ballistic Gun 3 | . . . 3 Ballistic Cannon 1 | . . . 1 Launcher 2 | . . 1 1 Special Weapon . | . . . . Impact Weapon 1 | . . . 1 Slashing Weapon . | . . . . Piercing Weapon 1 | . . . 1 Special Melee Weapon . | . . . . Unidentified Prototypes . | . . . . Parts Lost 6 | . . 3 3 Power 1 | . . . 1 Propulsion 1 | . . 1 . Utility . | . . . . Weapon 4 | . . 2 2 Highest Loss Streak 2 | . . 2 2 To Critical Strikes . | . . . . Average Backups 7 | 1 6 8 7 Power . | . 1 1 . Propulsion 2 | 1 3 4 1 Utility 1 | . 1 1 1 Weapon 2 | . . 1 2 Tool/Special . | . . . . Unused Backups 22 | . . . 22 Power 3 | . . . 3 Propulsion 6 | . . . 6 Utility 7 | . . . 7 Weapon 5 | . . . 5 Tool/Special 1 | . . . 1 Average Slot Usage (%) 90 | . 85 80 94 Engine 13 | . 14 14 13 Treads 1 | . . 3 . Leg 26 | . 28 24 27 Device 2 | . . . 4 Storage 14 | . 14 14 14 Protection 6 | . . . 9 Energy Gun 5 | . 28 17 . Ballistic Gun 12 | . . . 17 Launcher 4 | . . 3 4 Peak Build Rating 37 | 6 7 9 37 Average Rating 15 | 4 6 7 19 On Entrance 4 | . 6 6 6 Naked Turns . | . . . . Heaviest Build 28 | 11 16 27 28 Greatest Support 50 | 20 20 20 50 Greatest Overweight (x) 1 | . . 1 1 Average Overweight (x) . | . . . . Largest Inventory Capacity 10 | 8 10 10 10 Average Capacity 9 | 7 9 10 10 Most Carried 10 | 4 8 10 10 Average Carried 9 | 1 6 9 9 Final Capacity 10 | 8 10 10 10 Final Carried 10 | 4 8 10 9 Class Distribution -------------------- 100% | Mutant Dominant Class ---------------- Mutant | -10/Materials Mutant | -10/Subcaves Mutant | -7/Scraptown Resources | -11 -10 -10 -7 ----------- Run | Yrd Mat Sub Scr Matter Collected 788 | 249 68 101 370 Remotely . | . . . . Salvage Created 615 | 39 . 203 373 Parts 31 | 1 . 11 19 Haulers Intercepted . | . . . . Recyclers Shooed . | . . . . Parts Field Recycled . | . . . . Retrieved Matter . | . . . . Parts Self-Destructed 10 | . . 10 . Prevented . | . . . . Kills | -11 -10 -10 -7 ------- Run | Yrd Mat Sub Scr Combat Hostiles Destroyed 13 | . . 7 6 Guns 1 | . . 1 . Cannons 1 | . . 1 . AOE 7 | . . 4 3 Classes Destroyed 9 | 1 . 2 6 Tunneler 2 | 2 . . . Turret 1 | . . . 1 Swarmer 1 | . . 1 . Subdweller 6 | . . 6 . Federalist 1 | . . . 1 Explorer 1 | . . . 1 Ranger 1 | . . . 1 Scrapper 2 | . . . 2 Savage 1 | . . . 1 Best Kill Streak 4 | 2 . 4 3 Combat Bots Only 4 | . . 4 3 Max Kills in Single Turn 2 | 1 . 1 2 Gunslinging . | . . . . Exploded 2 | . . 1 2 Melee . | . . . . Uniques/NPCs Destroyed . | . . . . Combat | -11 -10 -10 -7 -------- Run | Yrd Mat Sub Scr Hostile Shots Fired 130 | . . 45 85 Missed 43 | . . 15 28 Hits 87 | . . 30 57 Melee 3 | . . . 3 Projectile 84 | . . 30 54 AOE 1 | . . . 1 Critical Strikes 4 | . . 3 1 Damage Taken 1327 | . 47 553 727 Core 257 | . 23 114 120 Absorbed by Shields . | . . . . Redirected to Shielding 42 | . . . 42 Core Remaining (%) 100 | 100 . . . Volleys Fired 42 | 6 . 28 8 Largest 2 | 2 . 2 1 Hottest 140 | 90 . 140 39 Shots Fired 67 | 12 . 47 8 Gun 54 | 12 . 37 5 Cannon 1 | . . 1 . Launcher 12 | . . 9 3 Special . | . . . . Kinetic 5 | . . . 5 Thermal 50 | 12 . 38 . Explosive 12 | . . 9 3 Electromagnetic . | . . . . Robot Hit Streak 14 | 5 . 14 2 Robot Miss Streak 3 | 1 . 2 3 Penetration Max 1 | . . . 1 Secondary Targets . | . . . . Shots Hit Robots 56 | 8 . 39 9 Core Hits 23 | 2 . 15 6 Critical Kills 2 | . . . 2 Critical Parts Destroyed 1 | . . . 1 Critical Strikes 4 | 1 . . 3 Burn 1 | 1 . . . Meltdown 2 | . . . 2 Destroy 1 | . . . 1 Melee Attacks 7 | . . . 7 Thermal 6 | . . . 6 Impact 1 | . . . 1 Slashing . | . . . . Piercing . | . . . . Sneak Attacks . | . . . . Combat Hostiles . | . . . . Follow-up Attacks . | . . . . Damage Inflicted 1975 | 101 2 1018 854 Guns 541 | 101 . 398 42 Cannons 25 | . . 25 . Explosions 977 | . . 595 382 Melee 430 | . . . 430 Ramming 2 | . 2 . . Kinetic 42 | . . . 42 Thermal 954 | 101 . 423 430 Explosive 977 | . . 595 382 Electromagnetic . | . . . . Impact . | . . . . Slashing . | . . . . Piercing . | . . . . Highest Corruption 2 | . 1 1 2 Average Corruption 1 | . 1 1 1 Corruption Purged . | . . . . Corruption Blocked . | . . . . Effects 28 | . 1 6 21 Message Errors 7 | . . 2 5 Matter Fused 7 | . . 2 5 Heat Flow Errors 3 | . . 1 2 Energy Discharges 3 | . . . 3 Data Loss (minor) 8 | . 1 1 6 Overload Shots . | . . . . Overflow Damage 75 | . . . 75 Projectiles . | . . . . Explosions . | . . . . Melee 75 | . . . 75 Knockbacks . | . . . . Impact . | . . . . Kinetic . | . . . . Secondary . | . . . . Self-Inflicted Damage . | . . . . Shots . | . . . . Rammed . | . . . . Targets Rammed 4 | . 4 . . Kicked 4 | . 4 . . Crushed . | . . . . Highest Temperature 294 | 162 . 131 294 Average Temperature 101 | 83 . 40 117 Received Heat Transfer 277 | . . 78 199 Effects 2 | . . . 2 Interference 2 | . . . 2 Siege Activations . | . . . . Martial Activations . | . . . . Shielding Activations . | . . . . Robots Disrupted . | . . . . Combat Hostiles . | . . . . Robots Corrupted . | . . . . Combat Hostiles . | . . . . Parts Fried . | . . . . Impact Corruptions . | . . . . Robots Melted 4 | . . 1 3 Combat Hostiles 4 | . . 1 3 Parts Melted 6 | 2 . 1 3 Heat Transferred 1971 | 347 . 944 680 Parts Sabotaged . | . . . . Parts Stolen . | . . . . Parts Stripped . | . . . . Power Chain Reactions . | . . . . Alert | -11 -10 -10 -7 ------- Run | Yrd Mat Sub Scr Maximum Alert Level . | . . . . Low Security (%) 100 | 100 100 . . Level 1 . | . . . . Level 2 . | . . . . Level 3 . | . . . . Level 4 . | . . . . Level 5 . | . . . . High Security . | . . . . Max Security . | . . . . Peak Influence 10 | 10 2 . . Initial . | . . . . Average . | . . . . Influence Increases 32 | 10 2 20 . Destroy 0b10 Robot/C 20 | . . 20 . Destroy 0b10 Robot/NC 10 | 10 . . . Successful Hack 2 | . 2 . . Influence Decreases 32 | 10 2 20 . Time Decay 32 | 10 2 20 . Squads Dispatched 1 | . 1 . . Investigation . | . . . . Extermination . | . . . . Reinforcement 1 | . 1 . . Assault . | . . . . Garrison . | . . . . Intercept . | . . . . Searches Triggered . | . . . . Construction Impeded . | . . . . Haulers Reinforced . | . . . . Active Scanning Responses . | . . . . Cargo Convoy Interrupts . | . . . . Stealth | -11 -10 -10 -7 --------- Run | Yrd Mat Sub Scr Distress Signals . | . . . . Communications Jammed . | . . . . Distress Signals . | . . . . Times Spotted 41 | . . 15 26 Peak Tracking Total 8 | . . 3 8 Tactical Retreats . | . . . . Traps | -11 -10 -10 -7 ------- Run | Yrd Mat Sub Scr Traps Triggered 1 | . 1 . . Indirectly . | . . . . Trap Hack Attempts . | . . . . Triggered . | . . . . Disarmed . | . . . . Reprogrammed . | . . . . Reused . | . . . . Traps Extracted . | . . . . Installed . | . . . . Triggered . | . . . . Most Traps Carried 2 | . . 1 2 Machines | -11 -10 -10 -7 ---------- Run | Yrd Mat Sub Scr Machines Disabled 2 | . . . 2 Max in Single Turn 1 | . . . 1 Machines Repaired . | . . . . Machines Dismantled . | . . . . Machines Sabotaged . | . . . . Overloaded Fab Kills . | . . . . Hacking | -11 -10 -10 -7 --------- Run | Yrd Mat Sub Scr Machines Accessed 8 | . 1 1 6 Terminals 1 | . 1 . . Fabricators . | . . . . Repair Stations . | . . . . Recycling Units . | . . . . Scanalyzers . | . . . . Garrison Access . | . . . . Total Hacks 47 | . 2 3 42 Successful 47 | . 2 3 42 Failed . | . . . . Catastrophic . | . . . . Database Lockouts . | . . . . Manual 1 | . 1 . . Terminals 2 | . 2 . . Fabricators . | . . . . Repair Stations . | . . . . Recycling Units . | . . . . Scanalyzers . | . . . . Garrison Access . | . . . . Terminal Hacks 46 | . 1 3 42 Record 38 | . 1 3 34 Robot Analysis 7 | . . . 7 Proto ID Catalog 1 | . . . 1 Fabricator Hacks . | . . . . Repair Station Hacks . | . . . . Recycling Unit Hacks . | . . . . Scanalyzer . | . . . . Garrison Access Hacks . | . . . . Unauthorized Hacks 1 | . 1 . . Terminals 1 | . 1 . . Skim 1 | . 1 . . Fabricators . | . . . . Repair Stations . | . . . . Recycling Units . | . . . . Scanalyzers . | . . . . Garrison Access . | . . . . Data Cores Recovered . | . . . . Used . | . . . . Hacking Detections 1 | . 1 . . Full Trace Events . | . . . . Feedback Events . | . . . . Feedback Blocked . | . . . . Robot Schematics Acquired . | . . . . Robots Built . | . . . . Authchips . | . . . . Time . | . . . . Total Robot Build Rating . | . . . . Part Schematics Acquired . | . . . . Parts Built . | . . . . Authchips . | . . . . Time . | . . . . Total Part Build Rating . | . . . . Parts Repaired . | . . . . Time . | . . . . Parts Recycled . | . . . . Recycled Matter . | . . . . Retrieved Matter . | . . . . Retrieved Components . | . . . . Parts Scanalyzed . | . . . . Part Schematics Acquired . | . . . . Parts Damaged . | . . . . Bothacking | -11 -10 -10 -7 ------------ Run | Yrd Mat Sub Scr Used RIF Installer . | . . . . Robots Hacked . | . . . . Non-combat . | . . . . Combat . | . . . . Robot Hacks Applied . | . . . . Relay Couplers Released . | . . . . Fabnet Peak Effective % . | . . . . Robots Rewired . | . . . . Allies Hacked . | . . . . Hacks Repelled . | . . . . Allies | -11 -10 -10 -7 -------- Run | Yrd Mat Sub Scr Total Allies 1 | . . . 1 Largest Group 1 | . . . 1 Highest-Rated Group 52 | . . . 52 Highest-Rated Ally 52 | . . . 52 Total Orders . | . . . . Ally Attacks 30 | . . . 30 Total Damage 860 | . . . 860 Kills 14 | . . . 14 Allies Corrupted . | . . . . Allies Melted 3 | . . . 3 Intel | -11 -10 -10 -7 ------- Run | Yrd Mat Sub Scr Active Infowar (turns) . | . . . . Robot Analysis Total 7 | . . . 7 Derelict Logs Recovered 2 | . . . 2 Drone Launches . | . . . . Drone Recoveries . | . . . . Exploration | -11 -10 -10 -7 ------------- Run | Yrd Mat Sub Scr Turns Passed 4346 | 90 150 1152 2954 Spaces Moved 3093 | 51 117 751 2174 Core 2 | 2 . . . Treads 231 | . . 192 39 Legs 2860 | 49 117 559 2135 Wheels . | . . . . Hover . | . . . . Flight . | . . . . Fastest Speed 50 | 50 120 120 130 Average Speed 132 | 117 120 140 131 Slowest Speed 240 | 120 120 190 240 Overloaded Moves . | . . . . Propulsion Burnouts . | . . . . Robots Hopped . | . . . . Potential Cave-ins . | . . . . Cave-ins Triggered . | . . . . Exploration Rate (%) 45 | 3 40 50 90 Regions Visited 3 Branch Regions 2 Pre-discovered Areas 2 | . . 1 1 Known Exits Taken . | . . . . Unknown Exits Taken 3 | 1 1 1 . Scrap Searched 9 | . . 1 8 Spaces Dug . | . . . . Terrain Destroyed 59 | . . 29 30 Melee . | . . . . Projectile . | . . . . AOE 59 | . . 29 30 Terrain Rammed . | . . . . Walls Destroyed . | . . . . Machines Disabled . | . . . . Actions | -11 -10 -10 -7 --------- Run | Yrd Mat Sub Scr Total 3267 | 66 125 804 2272 Wait 8 | . . 8 . Move 3090 | 50 116 750 2174 Hop . | . . . . Pick Up 41 | 4 2 6 29 Fast Attach 13 | 6 1 . 6 Attach 4 | . . 2 2 Detach 2 | . 1 . 1 Swap 14 | . 1 5 8 Drop 42 | . . 5 37 Fire 42 | 6 . 28 8 Melee 7 | . . . 7 Ram . | . . . . Kick 4 | . 4 . . Crush . | . . . . Escape Stasis . | . . . . Rewire . | . . . . Trap . | . . . . Miscellaneous . | . . . . Route ------- -11/Scrapyard -10/Materials (discovered 2 exits: [*Min] / *Sub) -10/Subcaves (discovered 2 exits: [*Mat] / *Scr) -7/Scraptown (discovered 1 exit: [*Fac]) History --------- Turn | Location | Event 5 | -11/Scrapyard | Discovered new exit (range 15) 91 | -11/Scrapyard | Entered Materials 92 | -10/Materials | Met a group of wandering Federalists 146 | -10/Materials | Discovered new exit (range 16) 219 | -10/Materials | Discovered new exit (range 15) 227 | -10/Materials | Lost 4 allies 241 | -10/Materials | Entered Subcaves 242 | -10/Subcaves | Continued accompanying wandering Federalists (2) 288 | -10/Subcaves | Shifting Twisted Machinery released Humpback 289 | -10/Subcaves | Shifting Twisted Machinery released Piercing Trap 305 | -10/Subcaves | Build established: Mutant 368 | -10/Subcaves | Discovered new exit (range 13) 371 | -10/Subcaves | A Subdweller sparked back to life 371 | -10/Subcaves | A Subdweller sparked back to life 371 | -10/Subcaves | A Subdweller sparked back to life 376 | -10/Subcaves | Ambushed by Subdwellers from Twisted Machinery 428 | -10/Subcaves | Wandering Federalist uncovered a shortcut to Scraptown 582 | -10/Subcaves | Visited Clippyterm 585 | -10/Subcaves | Learned location of Section 7 (-2) 633 | -10/Subcaves | Shifting Twisted Machinery released Sub. Power Source 636 | -10/Subcaves | A swath of the cavern ceiling suddenly collapsed 642 | -10/Subcaves | Shifting Twisted Machinery released Sub. Beam Cannon 948 | -10/Subcaves | Shifting Twisted Machinery released Battle Cannon 1072 | -10/Subcaves | Core integrity fell below 50% 1128 | -10/Subcaves | Shifting Twisted Machinery released Sub. Power Source 1393 | -10/Subcaves | Entered Scraptown 1574 | -7/Scraptown | Visited Scrapoid Research Area 1590 | -7/Scraptown | Visited Cave Peace 1627 | -7/Scraptown | Visited Bundlers 1643 | -7/Scraptown | Visited Awakened 1678 | -7/Scraptown | Visited CR-KLE's Repair Center 1701 | -7/Scraptown | Visited UFD Registry 1701 | -7/Scraptown | Registered with UFD as "Nullchip" 1755 | -7/Scraptown | Visited Chapter 10 1794 | -7/Scraptown | Visited Derelict Rescue Squad 1801 | -7/Scraptown | Found DRS Beacon 1974 | -7/Scraptown | Visited Curators Association 2017 | -7/Scraptown | Visited Scrapoid Pod Storage 2027 | -7/Scraptown | Found Scrapoid Pod 2059 | -7/Scraptown | Visited Analyses Database 2083 | -7/Scraptown | Visited Science Guys 2135 | -7/Scraptown | Visited Botcube Research 2140 | -7/Scraptown | Found Botcube 2175 | -7/Scraptown | Visited Junk Cannon Lab 2208 | -7/Scraptown | Visited Junk Repository 2638 | -7/Scraptown | Discovered new exit (range 11) 2697 | -7/Scraptown | Scanned Subdweller tech in exchange for log data 2700 | -7/Scraptown | Learned location of Zion (-6) 2701 | -7/Scraptown | Learned Research emergency access door positions 3153 | -7/Scraptown | Visited SPCMW 3191 | -7/Scraptown | Visited Junk Repository 3599 | -7/Scraptown | Botcube activated 3621 | -7/Scraptown | Botcube completed mutation into flying form, armed with 2 guns. 4013 | -7/Scraptown | Met Optimus 4013 | -7/Scraptown | Accepted into 0bPrime 4172 | -7/Scraptown | Civil war broke out across Scraptown 4185 | -7/Scraptown | Found Thermal Lance 4244 | -7/Scraptown | Lost 5 allies 4317 | -7/Scraptown | Lost 3 allies 4326 | -7/Scraptown | Core integrity fell below 20% 4347 | -7/Scraptown | Destroyed by T9-EZW(j) with Overtuned Pulse Rifle Last Messages --------------- 04332_ Structural Scanner melted. 04333_ Bolt penetrates Wall. 04334_ Penetrated by Bolt. 04335_ Critical hit (Burn: +50). 04335_ Penetrated by Bolt. 04336_ 3T-ETE(j) suffers critical hit (Meltdown). 04336_ Mak. Salvage Targeting Computer melted. 04338_ Penetrated by Bolt. 04339_ Overheating: System interference. 04339_ Thermal Lance temporarily disabled. 04339_ Penetrated by Bolt. 04339_ Slug penetrates V6-7ER(h). 04339_ V6-7ER(h) suffers critical hit (Destroy). 04339_ Destroyed Airjet. 04340_ Acquired 4 matter. 04341_ Penetrated by Bolt. 04342_ Acquired 4 matter. 04343_ Gauss Rifle destroyed. 04344_ Penetrated by Bolt. Map ----- +----------------------------------------------------+ | | | ?????????????????????????????????????????????????? | | ?????????????????????????????????????????????????? | | ?????????????????????????????????????????????????? | | ?????????????????????????????????????????????????? | | ?????????????????????????????????????????????????? | | ?????????????????????????????????????????????????? | | ?????????????????????????????????????????????????? | | ?????????????????????????????????????????????????? | | ?????????????????????????????????????????????????? | | ?????????????????????????????????????????????????? | | ?????????????????????????????????????????????????? | | ?????????????????????????????????????????????????? | | ?????????????????????????????????????????????????? | | ????????????????????????####?????????????????????? | | ???????????????????????## ##????????????????????? | | ???????????????????????# #????????????????????? | | ???????????????????????? ?????????????????????? | | ???????????????????????? ?????????????????????? | | ???????????????????????? ?????????????????????? | | ????????????????????????# #?????????????????????? | | ??#######???????????????# x#############?????????? | | ??""""""#???????????????# j#"""""""""""#?????????? | | ?#""""""#???????????????#=j#""" X """""#?????????? | | ?#"" "#???????????????#hh#"""" """#?????????? | | ?#"" "#???????????????#@=#"" " "#?????????? | | ?#"" "#???????????????#=%#""/" """#?????????? | | ##"" "#????#######"####%!#"" """"#?????????? | | ##" "#????#"""" ""#[*#! ""#?????????? | | ##""" |"###"##""" ""# #=" "" ""#?????????? | | ## #"" = " # # " "" ""#?????????? | | ## #""" "# #" #?????????? | | ## # #[= "#?????????? | | ####### ########### ### #%!=" ##########?????????? | | ####### ########### [=!= ##?????????????????? | | """"""" """""""!""" !%!" "#########?????????? | | =!= =% "## """"#?????????? | | ! !%=[=! [%%=!% "## " "#?????????? | | %[*=%!%[ !*!%% "## X"#?????????? | | * !=!![ !=[=! "## "#?????????? | | !%= =!%=* ""#?????????? | | """""""""""""" "" """"" *!![! ## " "#?????????? | | """""""""""""""""" """" !! "## """"#?????????? | | ##### ################" *== "## """"#?????????? | | ##????????# % "#########?????????? | | X"#????????#" ! "##"""""#??????????? | | "" "" ##????????#=* "## "#??????????? | | "" "" X"#??????###%! "## "#??????????? | | " " ######### #!* ==[## *"#??????????? | | "" ![% [*%= ! ! *%! = "#??????????? | +----------------------------------------------------+ Best States ------------- Heat Dissipation 25 Energy Generation 15 Energy Capacity 250 Matter Stores 300 Matter Capacity 300 Sight Range 16 Terrain Scan Density 10 Core Shielding 30 Evasion (%) 55 Recoil Reduction 1 Matter Filtering 30 Item Schematics ----------------- None Robot Schematics ------------------ None Fabricated ------------ Nothing Repaired ---------- Nothing Alien Tech Used ----------------- None Achievements -------------- None Challenges ------------ None Game ------ Seed TrackerGlidesysDetector Manual? 0 Play Time 00:29:52 Cumulative 93.0 hours Start 2025.05.06 @ 18:40:04 End 2025.05.06 @ 19:12:38 Sessions 1 Manual Loads 0 Difficulty Rogue Special Mode None Game No. 251 Rogue 249 Adventurer 2 Explorer 0 Win Type - Total 1 Types 1/0/0/0/0/0/0/0/0/0 Lore% 71 Gallery% 58 Achievement% 49 Wizard Run 0 Options --------- Layout 2 ASCII 0 Keyboard 0 Movement Arrows Keybinds 0 Fullscreen 2 Font 24/Smallcaps Map View 50x44 Zoom Use 0% Tactical HUD 1 Map Filters NONE Filters NONE Steam 1 RUN: b3b62d59-4369-4467-8e2e-29c8f941cdda